{"text_format":"3","workbook":"xlsx","n_sheets":4,"sheets":["CE.31.Lx NRWG_12101-2","Listen","T2","Tabelle1"],"not_rendered":{"defined_names":1,"comments":1},"read":"whole","date_system":"1900"}

{"sheet":"CE.31.Lx NRWG_12101-2","index":0,"n_rows":159,"n_cols":8,"rows_kept":159,"merged":[[0,2,0,4],[1,3,1,4],[7,2,7,4],[8,2,8,4],[9,2,9,4],[10,2,10,4],[12,2,12,4],[156,2,156,4]]}
[null,null,"Bestellanzeige CE-Schilder für NRWG (EN 12101-2:2003)",{"$nulls":3},"Stand:","2025-01-30"]
[null,null,"Schildabmessungen [H x B]: ","L1 (ohne Option Logo, ohne DMC) = 24 * 169 [mm]; L2 (mit Option DMC oder LOGO) = 24 * 185 [mm]; \nL3 (mit Option DMC und Logo) = 24 * 201 [mm]"]
[]
[null,7,{"$f":"IF(B4=1,'T2'!B2,IF(B4=2,'T2'!B3,IF(B4=3,'T2'!B4,IF(B4=4,'T2'!B5,IF(B4=6,'T2'!B6,IF(B4=7,'T2'!B7,IF(B4=8,'T2'!B8,IF(B4=9,'T2'!B9,IF(B4=11,'T2'!B10)))))))))","v":"An die\nÜberwachungsgemeinschaft für Feuerschutz-, Rauchschutz- \nund Schutzraumabschlüsse Baden-Württemberg e. V.\nSchönestr. 35/1\n70372 Stuttgart"}]
[null,null,{"$f":"IF(B4=1,'T2'!E2,IF(B4=2,'T2'!E3,IF(B4=3,'T2'!E4,IF(B4=4,'T2'!E5,IF(B4=6,'T2'!E6,IF(B4=7,'T2'!E7,IF(B4=8,'T2'!E8,IF(B4=9,'T2'!E9,IF(B4=11,'T2'!E10)))))))))","v":"schilder-bestellungen@feuerschutz-bw.de"}]
[]
[null,null,"Hinweise:"]
[null,"•","Bitte nutzen Sie für jedes Profil-System eine eigenes Bestellformular."]
[null,"•","Dem Besteller ist bekannt, dass die hier gemachten Angaben in seinem Verantwortungsbereich liegen und die Bestellangaben nicht durch den Schildhersteller überprüft werden."]
[null,"•","Dem Besteller ist auch bekannt, dass eine Kennzeichnung der Bauprodukte erst nach erfolgreicher Zertifizierung und Erstellung der Leistungserklärung für das Bauprodukt erfolgen darf. Somit kann die Bestellung frühestens nach durchgeführter Erstinspektion erfolgen."]
[null,"•","Die aus dieser Bestellung resultierende Kennzeichnung entspricht formal der Verordnung 305/2011 (EU-BauPVO) i. V. m. den jeweiligen Produktnormen. Dabei wird der Vorrang der EU-BauPVO vor den harmonisierten Produktnormen berücksichtigt. Für die Kennzeichnung werden die gemäß Anhang III der EU-BauPVO erlaubten sinnvollen Zusammenfassungen genutzt."]
[]
[null,null,"Hiermit bestellen wir verbindlich die nachfolgend durch uns definierten Schilder. "]
[]
[null,null,"Bestelldaten und Bestelltext",{"$nulls":3},"Anzahl Zeichen/Feld","Wo werden Daten benötigt?"]
["@Format",null,"Schildformat",{"$f":"IF(E16=\"CE.31.L1\",\"Schildabmessungen = 24*169\",IF(E16=\"CE.31.L2\",\"Schildabmessungen = 24*185\",IF(E16=\"CE.31.L3\",\"Schildabmessungen = 24*201\",\"Schildformat\")))","v":"Schildabmessungen = 24*169"},{"$f":"IF(AND(E55=\"ja\",E56=\"ja\"),\"CE.31.L3\",IF(OR(AND(E55=\"ja\",E56=\"nein\"),AND(E56=\"ja\",E55=\"nein\")),\"CE.31.L2\",\"CE.31.L1\"))","v":"CE.31.L1"},null,null,"M, (Sortierkriterium 3)"]
["@Format-alternativ"]
["@Spec",null,"harmonisierte Norm:",null,"EN 12101-2",null,10,"M, L"]
["@Antragsteller-NB",null,"Für die Zertifizierung eingebundene notifizierte Stelle \nZertifizierungsstelle: AKF ZERT = 2604",null,2604,null,4,"S, DMC"]
["@Produkt1",null,"Verwendungszweck nach Norm, Teil 1",null,"Natürliches Rauch- u. Wärmeabzugsgerät (EN 12101-2) zur Ableitung von Rauch",null,75,"S, DMC"]
["@Produkt2",null,"Verwendungszweck nach Norm, Teil 2","Angabe für Dach oder \nSeitenwand erforderlich!",null,null,75,"S, DMC"]
["@Produkt3",{"$nulls":5},75,"S, DMC"]
["@Anzahl",null,"Anzahl Schilder (Stück):",{"$nulls":3},4,"M, L"]
["@E-H-Jahr",null,"letze 2 Ziffern des Jahres, in dem der Produkttyp in Verkehr gebracht wurde (erstmals auf dem Markt bereit gestellt wurde)",{"$nulls":3},2,"S, DMC"]
[]
["@Bestelldatum",null,"Datum der Bestellung",{"$nulls":3},10,"L"]
[]
["@BV",null,"Bauvorhaben (BV) oder Projektnummer oder Auftragsnummer bzw. Kommission/Lager",{"$nulls":3},100,"L"]
[]
["@B-H-Steller1",null,"Name Hersteller",{"$nulls":3},70,"L, S, DMC"]
["@B-H-Steller2",{"$nulls":5},70]
["@B-H-PLZ-Ort",null,"PLZ und Ort",{"$nulls":3},"6+26","L, S, DMC"]
["@B-H-Strasse",null,"Strasse und Hausnummer",{"$nulls":3},"30+4","L, DMC"]
["@B-H-Land",null,"Land (in GROSSBUCHSTABEN)",{"$nulls":3},23,"L, DMC"]
[null,null,"Kontaktdaten des Herstellers\n(optionale Angaben, z. B. für DMC)"]
["@B-H-Telefon",null,"Telefon Zentrale: ",{"$nulls":3},20,"DMC"]
["@B-H-Email",null,"E-Mail Zentrale:",{"$nulls":3},50,"DMC"]
["@B-H-web",null,"homepage:",{"$nulls":3},50,"DMC"]
["@B-H-Kontakt",null,"Kontaktperson Hersteller ",{"$nulls":3},70]
["@HWK1",null,"Kennnummer Überwachungsgemeinschaft (HWK-Nr. 1)",null,{"$f":"B4","v":7},null,3,"M (Sortierkriterium 2), L"]
["@HWK2",null,"Pflichtfeld: Kennnummer Herstellwerk (HWK-Nr.):",{"$nulls":3},4,"M (Sortierkriterium 2), L"]
[]
["@Zeile1"]
["@Zeile2"]
["@Zeile3"]
["@Zeile4"]
["@Zeile5"]
["@Zeile6"]
["@Zeile7"]
["@Zeile8"]
["@Zeile9"]
["@Zeile10"]
[null,null,{"$f":"IF(AND(E55=\"\",E56=\"\"),\"Optionen (Pflichtfelder!)\",IF(OR(E55=\"\",E56=\"\"),\"Angaben zu DMC und Logo erforderlich!\",\"Optionen (Pflichtfelder!)\"))","v":"Optionen (Pflichtfelder!)"}]
["@Ue-CE-Logo",null,"CE-Logo",null,"3.0",null,null,"S"]
["@DMC",null,"DMC",null,"nein",null,null,"S, L"]
["@B-H-Logo",null,"Logo Hersteller",null,"nein",null,null,"S, L"]
["@SchildNr",null,"Schildnummer",null,"ja",null,20,"S, L"]
["@Material",null,"Material:",null,"E",null,null,"M (Sortierkrierium 1), L"]
[]
["@Errichter1"]
["@Errichter2"]
["@E-PLZ-Ort"]
["@E-Strasse"]
["@E-Land"]
["@E-Telefon"]
["@E-Email"]
["@E-web",null,null,{"$f":"IF(OR(D68=\"\",D68=\"npd\"),\"Nummer Leistungserklärung fehlt!\",\"\")","v":"Nummer Leistungserklärung fehlt!"}]
["@DoP",null,"Nummer der Leistungserklärung (DoP)",null,{"$f":"IF(D68<>\"\",\"DoP: \"&D68,\"\")","v":""},null,30,"L, S, DMC"]
["@Produkttyp",null,"Produkttyp",{"$f":"IF(AND(OR(D70=\"NPD\",D70=\"\"),D71=\"\"),\"Angabe Produkttyp fehlt!\",\"\")","v":"Angabe Produkttyp fehlt!"},{"$f":"IF(AND(AND(D70<>\"npd\",D70<>\"\"),D71=\"\"),D70,IF(AND(D70=\"npd\",D71<>\"\"),D71,IF(AND(D70<>\"npd\",D71<>\"\"),D71,IF(AND(D70=\"npd\",D71=\"\"),\"\",\"\"))))","v":""},null,75,"L, S, DMC"]
["2",null,"Produkttyp (wenn Profilsystem, dann gleichzeitig Kenncode)\n(z. B. Profilsystem = Satz aus repräsentativen Stufen und Klassen)"]
["3",null,"Produkttyp (Z. B. Profilserie und Öffnungsart oder eigener Handelsname: Musterserie - Klappsenk - auswärts)"]
["@Kenncode",null,"Kenncode des Produkttyps (s. Art. 9 EU-BauPVO)",null,{"$f":"IF(AND(D72<>\"npd\",D72<>\"\"),\"Kenncode: \"&D72,\"\")","v":""},null,30,"S, DMC"]
["@WM1",null,"4.1 Nominale Auslösebedingungen (Pflichtangaben)",{"$f":"IF(OR(D74=\"\",D74=\"npd\"),\"Angaben erforderlich.\",\"\")","v":"Angaben erforderlich."},{"$f":"IF(D74=\"_\",\"Auslöseelement: ____________________\",IF(D74=\"thermisch\",\"Auslöseelement: thermisch\",IF(D74=\"thermisch + manuell\",\"Auslöseelement: thermisch + manuell\",IF(D74=\"entferntes elektrisches Signal\", \"Auslöseelement: \"&D74&\" /    \"&D76&\" V \"&D75&\" /    \"&D77&\" A\",IF(D74=\"pneumatisch\",\"Auslöseelement: pneumatisch\",IF(D74=\"anderes Signal\",\"Auslöseelement: anderes Signal\",IF(D74=\"manuell\",\"Auslöseelement: manuell\",\"\")))))))","v":""},null,70,"S, DMC"]
["2",null,"4.1.1/4.2.1 Auslöseelement: "]
["3",null,"Bei Angabe \"entferntes elektr. Signal\" sind folgende Zusatzangaben erforderlich:\nArt der Spannung bei Verwendung einer externen Energiequelle: Wechselspannung = AC; Gleichspannung = DC"]
["4",null,"Spannung in V (z. B. 24): "]
["5",null,"Stromstärke in A (z. B. 3): "]
["@WM2",{"$nulls":5},25,"S, DMC"]
["2"]
["3"]
["4"]
["5"]
["@WM3",{"$nulls":5},10,"S, DMC"]
["2"]
["3"]
["4"]
["5"]
["@WM4",{"$nulls":5},10,"S, DMC"]
["2"]
["3"]
["4"]
["5"]
["@WM5",null,"7.1.2 Zeit zum Erreichen der Funktionsstellung [s]:",null,{"$f":"IF(AND(D93<>\"\",D93<>\"npd\"),\"Funktionsstellung: \"&D93&\" s\",\"Funktionsstellung: ___ s\")","v":"Funktionsstellung: ___ s"},null,24,"S, DMC"]
["2"]
["3"]
["4"]
["5"]
["@WM6",null,"7.1.1 Funktionssicherheit Re (Anzahl der Zyklen zum Nachweis\n         der Funktionsstellung: A, 50 oder 1000)",null,{"$f":"IF(AND(D98<>\"\",D98<>\"npd\"),\"Re \"&D98,\"Re _____\")","v":"Re _____"},null,10,"S, DMC"]
["2"]
["3"]
["4"]
["5"]
["@WM7",null,"7.4.1 Windlast WL \n         (nachgewiesener Prüfdruck [Pa]: 1500, 3000, A)",null,{"$f":"IF(AND(D103<>\"\",D103<>\"npd\"),\"WL \"&D103, \"WL _____\")","v":"WL _____"},null,10,"S, DMC"]
["2"]
["3"]
["4"]
["5"]
["@WM8",null,"6./Anh. B: Aerodyn. wirksame Öffnungsfläche Aa in m² (X,XX):\n            (aerodyn. Öffnungsfläche = geometr. Fläche* Durch-\n            flussbeiwert)",null,{"$f":"IF(AND(D108<>\"\",D108<>\"npd\"),\"Aₐ = \"&D108&\" m²\",\"Aₐ = ____\")","v":"Aₐ = ____"},null,15,"S, DMC"]
["2"]
["3"]
["4"]
["5"]
["@WM9",null,"7.5.1 Wärmebeständigkeit (z. B. B300 30, B600 120)",null,{"$f":"\"B\"&D114&\" \"&D115","v":"B "},null,10,"S, DMC"]
["2",null,"Expositionstemperatur in °C (z. B. 300, 600)"]
["3",null,"Expositionszeit in min"]
["4"]
["5"]
["@WM10",null,"7.2.1.1 Schneelast (Einbaulage < 45 ° zur Horizontalen)",null,{"$f":"IF(OR(D118=\"npd\",D118=\"\"),\"\",D118)","v":""},null,10,"S, DMC"]
["2"]
["3"]
["4"]
["5"]
["@WM11",null,"7.3 Umgebungstemperatur ",null,{"$f":"IF(AND(D124<>\"NPD\",D124<>\"\"),\"T(\"&D124&\")\",IF(AND(D123<>\"NPD\",D123<>\"\"),D123,\"\"))","v":""},null,10,"S, DMC"]
["2",null,"Umgebungstemperatur A bei abweichendem Prüfnachweis \n(nur Temperaturwert angeben, z. B. -10)",{"$nulls":4},{"$f":"IF(OR(D118=\"npd\",D118=\"\"),\"\",D118)","v":""}]
["3"]
["4"]
["5"]
["@WM12",null,"7.5.2.1 Brandverhalten der Baustoffe des NRWG \n            (Klassifizierung nach EN 13501-1, z. B. Brandverhaltensklasse,\n                Rauchentwicklung, brennendes Abtropfen/Abfallen: C – s2,d0)","In DE Anforderungen der \nVV TB beachten!",null,null,10,"S, DMC"]
["2"]
["3"]
["4"]
["5"]
["@WM13"]
["2"]
["3"]
["4"]
["5"]
["@WM14"]
["2"]
["3"]
["4"]
["5"]
["@WM15"]
["2"]
["3"]
["4"]
["5"]
["@WM16"]
["2"]
["3"]
["4"]
["5"]
["@END"]
[{"$nulls":3},"Datenbereich: E16:E128"]
[]
[null,null,"Vermerke AKF/ÜG:"]
[]
[]
[null,null,"?",null,"?"]

{"sheet":"Listen","index":1,"n_rows":45,"n_cols":2,"rows_kept":45,"hidden":true}
["Verwendungszweck nach EN 12101-2","Erläuterung"]
["Natürliches Rauch- u. Wärmeabzugsgerät (EN 12101-2) zur Ableitung von Rauch",{"$f":"LEN(A2)","v":75}]
[null,{"$f":"LEN(A3)","v":0}]
[null,{"$f":"LEN(A4)","v":0}]
[null,0]
[]
["Verwendungszweck nach Norm Teil 2"]
["?"]
["und Wärme aus Bauwerken - Dacheinbau",{"$f":"LEN(A9)","v":36}]
["und Wärme aus Bauwerken - Seitenwandeinbau mit windrichtungsabh. Steuerung",74]
[null,0]
[null,{"$f":"LEN(A12)","v":0}]
["Produkttypen","Zeichenanzahl"]
["NPD"]
[null,{"$f":"LEN(A15)","v":0}]
["4.1.1 Auslöseelement",20]
["_",1]
["thermisch",9]
["thermisch + manuell",19]
["entferntes elektrisches Signal",30]
["pneumatisch",11]
["anderes Signal",14]
["manuell",7]
[null,0]
["Art der Spannung",16]
["__",2]
["AC",2]
["DC",2]
[null,0]
[null,0]
[null,0]
["7.2.1.1 Schneelast",18]
["NPD",3]
["SL 0"]
["SL 125"]
["SL 250"]
["SL 500"]
["SL 1000"]
[]
["7.3 Umgebungstemperatur"]
["NPD"]
["T(00)"]
["T(-05)"]
["T(-15)"]
["T(-25)"]

{"sheet":"T2","index":2,"n_rows":10,"n_cols":6,"rows_kept":10,"hidden":true}
["Lfd. Nr.","Organisation","Strasse","Ort","E-Mail f. FA, BA, KA","Anmeldefrist"]
[1,"An die\nÜberwachungsgemeinschaft für Feuerschutz-, Rauchschutz- \nund Schutzraumabschlüsse Berlin/Brandenburg e. V.\nMahlsdorfer Str. 61b\n15366 Hoppegarten","Mahlsdorfer Str. 61 b","15366 Hoppegarten","feuerschutz-berlin@t-online.de ","Bitte melden Sie Ihre Fertigung mindestens 2 Wochen vor Produktionsbeginn an."]
[2,"An den\nArbeitskreis der Überwachungsgemeinschaften für Feuer-\nschutz-, Rauchschutz- und Schutzraumabschlüsse e. V.\nGraf-Spee-Str. 13\n45133 Essen","Graf-Spee-Str. 13","45133 Essen","schilder-bestellung@akf-ev.de ","Bitte melden Sie Ihre Fertigung mindestens 4 Wochen vor Produktionsbeginn an."]
[3,"An die \nÜberwachungsgemeinschaft Feuerschutztüren \nNiedersachsen/Bremen/Sachsen-Anhalt e. V.\nHeidering 29\n30625 Hannover","Heidering 29","30625 Hannover","schilder@feuerschutztueren.com","Bitte melden Sie Ihre Fertigung mindestens 2 Wochen vor Produktionsbeginn an."]
[4,"An die\nÜberwachungsgemeinschaft  West e. V.\nGraf-Spee-Str. 13\n45133 Essen","Graf-Spee-Str. 13","45133 Essen","schilder-bestellung@nrw.ueg-ev.de ","Bitte melden Sie Ihre Fertigung mindestens 4 Wochen vor Produktionsbeginn an."]
[6,"An die\nÜberwachungsgemeinschaft  West e. V.\nGraf-Spee-Str. 13\n45133 Essen","Graf-Spee-Str. 13","45133 Essen","schilder-bestellung@nrw.ueg-ev.de ","Bitte melden Sie Ihre Fertigung mindestens 4 Wochen vor Produktionsbeginn an."]
[7,"An die\nÜberwachungsgemeinschaft für Feuerschutz-, Rauchschutz- \nund Schutzraumabschlüsse Baden-Württemberg e. V.\nSchönestr. 35/1\n70372 Stuttgart","Schönestr. 35/1","70372 Stuttgart","schilder-bestellungen@feuerschutz-bw.de","Bitte melden Sie Ihre Fertigung mindestens 2 Wochen vor Produktionsbeginn an."]
[8,"An die\nÜberwachungsgemeinschaft für Feuerschutz-, Rauchschutz- \nund Schutzraumabschlüsse Bayern e. V.\nNeuburgstr. 1c\n83620 Feldkirchen-Westerham","Neuburgstr. 1c","83620 Feldkirchen-Westerham","bestellungen@feuerschutz-bayern.de","Bitte melden Sie Ihre Fertigung mindestens 2 Wochen vor Produktionsbeginn an."]
[9,"An die\nÜberwachungsgemeinschaft für Feuerschutz-, Rauchschutz- \nund Schutzraumabschlüsse Sachsen e. V.\nBreitscheidstr. 45\n01156 Dresden","Breitscheidstr. 45","01156 Dresden","bestellung@feuerschutzinfo.de","Bitte melden Sie Ihre Fertigung mindestens 2 Wochen vor Produktionsbeginn an."]
[11,"An die\nÜberwachungsgemeinschaft NORD für Feuerschutz-, Rauch-\nschutz- und Schutzraumabschüsse der Länder Schleswig-Holstein, Mecklenburg-Vorpommern u. Hamburg e. V.\nRendsburger Landstr. 211\n24113 Kiel","Rendsburger Landstr. 211","24113 Kiel","info@feuerschutz-nord.de","Bitte melden Sie Ihre Fertigung mindestens 2 Wochen vor Produktionsbeginn an."]

{"sheet":"Tabelle1","index":3,"n_rows":5,"n_cols":61,"rows_kept":5,"hidden":true}
[]
[]
[]
[]
[{"$f":"_xlfn.IFS(AND(AB5=\"ja\",AC5=\"ja\"),\"CE.1.L3\",AB5=\"ja\",\"CE.1.L2\",AC5=\"ja\",\"CE.1.L2\",TRUE,\"CE.1.L1\")","v":"CE.1.L1"},"EN 16034","CE",2397,"Feuerschutztür nach EN 16034 als Außentür nach EN 14351-1","zur Raumaufteilung in Rauchabschnitte im Wohnungs- und Nichtwohnungsbau",null,4,18,null,"Spielhaus, Grüner Weg 12, 12345 Sonstwo",null,"2023-12-31",null,"Müller Metallbau GmbH & Co. KG",null,"99999 Irgendwo","In der Schmiede 23","DEUTSCHLAND",null,"+49 201 255177","info@metallbaumustermann.de","www.metallbaumeyer.de","Herr Meyer","9/",123,null,"nein","nein","nein","E",null,"12345678890-yxcvbnn-rrrrr-445646756",{"$f":"IF(AND(AI4<>\"npd\",AJ4=\"\"),AI4,IF(AND(AI4=\"npd\",AJ4<>\"\"),AJ4,IF(AND(AI4<>\"npd\",AJ4<>\"\"),\"\",\"\")))","v":0},{"$nulls":3},{"$f":"IF(AND(AM4=\"NPD\",AN4=\"NPD\",AO4=\"NPD\"),\"\",IF(AND(AM4<>\"NPD\",AN4=\"NPD\",AO4=\"NPD\"),AM4,IF(AND(AN4<>\"NPD\",AM4=\"NPD\",AO4=\"NPD\"),AN4,IF(AND(AO4<>\"NPD\",AM4=\"NPD\",AN4=\"NPD\"),AO4,IF(AND(AM4<>\"NPD\",AN4<>\"NPD\",AO4=\"NPD\"),AM4&AN4,IF(AND(AM4=\"NPD\",AN4<>\"NPD\",AO4<>\"NPD\"),AN4&AO4,IF(AND(AM4<>\"NPD\",AO4<>\"NPD\",AN4=\"NPD\"),AM4&AO4,IF(AND(AM4<>\"NPD\",AN4<>\"NPD\",AO4<>\"NPD\"),AM4&AN4&AO4,\"\"))))))))","v":""},{"$nulls":3},{"$f":"IF(AND(AO4=\"NPD\",AP4=\"npd\"),\"\",IF(AND(AO4=\"NPD\",AP4<>\"npd\"),\"\",IF(AND(AO4<>\"npd\",AP4=\"npd\"),\"\",IF(AND(AO4<>\"npd\",AP4<>\"npd\"),\"Dauerhaftigkeit \"&AO4&\" gegen Alterung: erzielt\"))))","v":"Dauerhaftigkeit  gegen Alterung: erzielt"},{"$f":"IF(AQ4=\"NPD\",\"\",\"Fähigkeit z. Freigabe EN 16034: freigegeben - Freigabe aufrecht erhalten\")","v":"Fähigkeit z. Freigabe EN 16034: freigegeben - Freigabe aufrecht erhalten"},{"$f":"IF(AR4=\"NPD\", \"\", \"Fähigkeit z. Freigabe EN 14351-1: \"&AR4)","v":"Fähigkeit z. Freigabe EN 14351-1: "},null,{"$f":"IF(OR(AT4=\"\",AT4=\"npd\"),\"\",\"Uᴅ [W/(m2K)]: \"&AT4)","v":""},{"$f":"IF(AU4=\"NPD\",\"\",\"Q: \"&AU4)","v":"Q: "},{"$f":"IF(AND(AND(AW4<>0,AW4<>\"NPD\"),AND(AX4<>\"NPD\",AX4<>\"\")),\"g: \"&AW4&\"     Tv: \"&AX4,\"\")","v":""},null,null,{"$f":"IF(AY4=\"NPD\",\"\",\"Höhe [mm]: \"&AY4)","v":"Höhe [mm]: "},{"$f":"IF(AND(BA4<>\"NPD\",BA4<>0),\"Windlast: \"&BA4,IF(AZ4<>\"NPD\",\"Windlast: \"&AZ4,\"\"))","v":"Windlast: "},null,{"$f":"IF(BB4=\"npd\",\"\",\"Schlagregen: \"&BB4)","v":"Schlagregen: "},{"$f":"IF(AND(AND(BD4<>0,BD4<>\"npd\"),AND(BE4<>0,BE4<>\"npd\"),BF4<>\"npd\"),\"Rw [dB]: \"&BD4&\" (\"&BE4&\"; \"&BF4&\")\",\"\")","v":""},{"$nulls":3},{"$f":"IF(BG4=\"npd\",\"\",\"Tragfähigk. 350 N/60 s\")","v":"Tragfähigk. 350 N/60 s"},null,{"$f":"IF(BI4=\"npd\",\"\",\"Stoßfestigkeit: \"&BI4)","v":"Stoßfestigkeit: "}]